[Event "EICC 2021"]
[Site "Reykjavik"]
[Date "2021.09.05"]
[Round "11.22"]
[White "Can, Emre"]
[Black "Grigorian, Spartak"]
[Result "1-0"]
[ECO "E04"]
[WhiteElo "2569"]
[BlackElo "2448"]
[Annotator "ChessBase"]
[PlyCount "47"]
[EventDate "2021.08.26"]
[EventType "swiss"]
[EventCountry "ISL"]
[Tiebreak "Cut1 Buchholz"]
[SourceTitle "playchess.com"]
[Source "ChessBase"]
[SourceQuality "1"]
[TimeControl "40/5400+30:1800+30"]

1. d4 {[%emt 0:00:05]} Nf6 {[%emt 0:00:40]} 2. c4 {[%emt 0:00:17]} e6 {[%emt 0:
01:03]} 3. Nf3 {[%emt 0:00:14]} d5 {[%emt 0:00:04]} 4. g3 {[%emt 0:00:29]} dxc4
{[%emt 0:00:21]} 5. Bg2 {[%emt 0:00:21]} c5 {[%emt 0:01:39]} 6. Qa4+ {[%emt 0:
01:15]} Nc6 {[%emt 0:03:51]} 7. Ne5 {[%emt 0:03:04]} Bd7 {[%emt 0:03:22]} 8.
Nxc6 {[%emt 0:01:09]} Qb6 {[%emt 0:01:52]} 9. Nd2 {[%emt 0:00:18]} Bxc6 {
[%emt 0:03:01]} 10. Bxc6+ {[%emt 0:01:42]} bxc6 {[%emt 0:01:25]} 11. dxc5 {
[%emt 0:02:02]} Bxc5 {[%emt 0:00:46]} 12. O-O {[%emt 0:01:19]} Qb5 {[%emt 0:27:
15]} 13. Qxc4 {[%emt 0:04:30]} h5 {[%emt 0:00:20]} 14. Qc2 {[%emt 0:10:18]} h4
{[%emt 0:11:43]} 15. a4 {[%emt 0:01:25]} Qb4 {[%emt 0:00:12]} 16. Nc4 {[%emt 0:
01:32]} hxg3 {[%emt 0:01:28]} 17. hxg3 {[%emt 0:00:41]} Bxf2+ {[%emt 0:21:02]}
18. Kxf2 {[%emt 0:01:25]} Ng4+ {[%emt 0:00:04]} 19. Kg1 {[%emt 0:02:41]} Rh3 {
[%emt 0:07:08]} 20. Bf4 {[%emt 0:08:09]} g5 {[%emt 0:02:44]} 21. Bd6 {[%emt 0:
10:03]} O-O-O {[%emt 0:00:40]} 22. Qe4 {[%emt 0:00:35]} Qb7 {[%emt 0:09:51]}
23. Rf3 {[%emt 0:02:04]} f5 24. Rxf5 {[%emt 0:00:30]} 1-0

[Event "EICC 2021"]
[Site "Reykjavik"]
[Date "2021.09.05"]
[Round "11.23"]
[White "Sebenik, Matej"]
[Black "Suleymanli, Aydin"]
[Result "1-0"]
[ECO "E04"]
[WhiteElo "2492"]
[BlackElo "2536"]
[Annotator "ChessBase"]
[PlyCount "77"]
[EventDate "2021.08.26"]
[EventType "swiss"]
[EventCountry "ISL"]
[Tiebreak "Cut1 Buchholz"]
[SourceTitle "playchess.com"]
[Source "ChessBase"]
[SourceQuality "1"]
[TimeControl "40/5400+30:1800+30"]

1. Nf3 {[%emt 0:00:08]} d5 {[%emt 0:00:10]} 2. d4 {[%emt 0:00:11]} Nf6 {
[%emt 0:00:11]} 3. c4 {[%emt 0:00:14]} e6 {[%emt 0:00:06]} 4. g3 {[%emt 0:00:
13]} dxc4 {[%emt 0:02:23]} 5. Bg2 {[%emt 0:00:05]} Bb4+ {[%emt 0:01:35]} 6. Bd2
{[%emt 0:00:22]} a5 {[%emt 0:00:59]} 7. Qc2 {[%emt 0:06:09]} Bxd2+ {[%emt 0:01:
02]} 8. Qxd2 {[%emt 0:00:06]} c6 {[%emt 0:05:27]} 9. a4 {[%emt 0:00:05]} Ne4 {
[%emt 0:00:51]} 10. Qc1 {[%emt 0:00:05]} Nd6 {[%emt 0:01:08]} 11. Ne5 {[%emt 0:
02:49]} Na6 {[%emt 0:00:53]} 12. Nd2 {[%emt 0:02:07]} Nb4 {[%emt 0:00:20]} 13.
O-O {[%emt 0:00:15]} O-O {[%emt 0:03:05]} 14. Ndxc4 {[%emt 0:00:25]} Nf5 {
[%emt 0:01:25]} 15. Rd1 {[%emt 0:14:28]} f6 {[%emt 0:02:06]} 16. Nf3 {[%emt 0:
17:17]} b6 {[%emt 0:08:19]} 17. e4 {[%emt 0:04:49]} Ne7 {[%emt 0:01:37]} 18.
Qc3 {[%emt 0:03:04]} Kh8 {[%emt 0:02:14]} 19. Qb3 {[%emt 0:00:21]} Ra7 {
[%emt 0:02:16]} 20. Rd2 {[%emt 0:02:07]} f5 {[%emt 0:08:42]} 21. Re1 {[%emt 0:
01:29]} fxe4 {[%emt 0:03:51]} 22. Rxe4 {[%emt 0:00:07]} Nf5 {[%emt 0:01:09]}
23. Nfe5 {[%emt 0:10:06]} Ba6 {[%emt 0:01:42]} 24. Ne3 {[%emt 0:01:25]} c5 {
[%emt 0:08:08]} 25. Nxf5 {[%emt 0:27:10]} exf5 {[%emt 0:00:31]} 26. Ng6+ {
[%emt 0:01:42]} hxg6 {[%emt 0:00:06]} 27. Rh4+ {[%emt 0:00:01]} Qxh4 {[%emt 0:
00:07]} 28. gxh4 {[%emt 0:00:02]} Rd7 {[%emt 0:05:00]} 29. Qe6 {[%emt 0:01:03]}
Rxd4 {[%emt 0:00:11]} 30. Rxd4 {[%emt 0:00:04]} cxd4 {[%emt 0:00:09]} 31. Qxb6
{[%emt 0:04:40]} d3 {[%emt 0:13:14]} 32. Qxa5 {[%emt 0:00:05]} Rc8 {[%emt 0:04:
59]} 33. Bf3 {[%emt 0:01:56]} Rc4 {[%emt 0:01:39]} 34. h5 {[%emt 0:00:00]} gxh5
{[%emt 0:01:29]} 35. Qxf5 {[%emt 0:00:00]} Kg8 {[%emt 0:03:23]} 36. Qxh5 {
[%emt 0:01:26]} Rf4 {[%emt 0:00:47]} 37. Qe8+ {[%emt 0:00:48]} Rf8 {[%emt 0:00:
07]} 38. Qe6+ {[%emt 0:00:03]} Kh8 {[%emt 0:00:09]} 39. Be4 {[%emt 0:00:45]}
1-0

[Event "EICC 2021"]
[Site "Reykjavik"]
[Date "2021.09.05"]
[Round "11.24"]
[White "Gretarsson, Helgi Ass"]
[Black "Plat, Vojtech"]
[Result "1-0"]
[ECO "D07"]
[WhiteElo "2447"]
[BlackElo "2531"]
[Annotator "ChessBase"]
[PlyCount "95"]
[EventDate "2021.08.26"]
[EventType "swiss"]
[EventCountry "ISL"]
[Tiebreak "Cut1 Buchholz"]
[SourceTitle "playchess.com"]
[Source "ChessBase"]
[SourceQuality "1"]
[TimeControl "40/5400+30:1800+30"]

1. d4 {[%emt 0:00:03]} d5 {[%emt 0:00:08]} 2. c4 {[%emt 0:00:06]} Nc6 {[%emt 0:
00:07]} 3. Nf3 {[%emt 0:00:31]} Bg4 {[%emt 0:00:06]} 4. Nc3 {[%emt 0:00:07]}
Bxf3 {[%emt 0:01:09]} 5. gxf3 {[%emt 0:00:16]} dxc4 {[%emt 0:05:01]} 6. d5 {
[%emt 0:01:58]} Ne5 {[%emt 0:00:04]} 7. Qd4 {[%emt 0:01:01]} Nd7 {[%emt 0:00:
27]} 8. Qxc4 {[%emt 0:01:23]} Nb6 {[%emt 0:00:05]} 9. Qb3 {[%emt 0:00:13]} g6 {
[%emt 0:01:30]} 10. e4 {[%emt 0:00:28]} Bg7 {[%emt 0:03:44]} 11. Bb5+ {[%emt 0:
02:01]} Kf8 {[%emt 0:00:03]} 12. Be3 {[%emt 0:00:34]} Nf6 {[%emt 0:00:17]} 13.
a4 {[%emt 0:20:29]} Nbd7 {[%emt 0:01:23]} 14. Be2 {[%emt 0:03:53]} b6 {[%emt 0:
00:54]} 15. f4 {[%emt 0:02:53]} Nc5 {[%emt 0:00:05]} 16. Qc2 {[%emt 0:00:47]}
Qd7 {[%emt 0:03:43]} 17. O-O-O {[%emt 0:05:03]} Ng4 {[%emt 0:01:52]} 18. Bxc5 {
[%emt 0:14:41]} bxc5 {[%emt 0:00:04]} 19. h3 {[%emt 0:00:18]} Nh6 {[%emt 0:01:
21]} 20. Bb5 {[%emt 0:00:34]} Qc8 {[%emt 0:01:22]} 21. Ne2 {[%emt 0:07:24]} Rb8
{[%emt 0:00:38]} 22. b3 {[%emt 0:11:59]} a6 {[%emt 0:00:43]} 23. Bc4 {[%emt 0:
00:17]} Qb7 {[%emt 0:00:53]} 24. Kb1 {[%emt 0:00:58]} Qb6 {[%emt 0:04:09]} 25.
Ka2 {[%emt 0:00:12]} Qf6 {[%emt 0:01:37]} 26. e5 {[%emt 0:02:54]} Qb6 {[%emt 0:
00:08]} 27. Ng3 {[%emt 0:02:07]} Rg8 {[%emt 0:00:40]} 28. Rhe1 {[%emt 0:01:44]}
Qa5 {[%emt 0:01:11]} 29. Qd3 {[%emt 0:06:12]} Rb4 {[%emt 0:00:16]} 30. Rc1 {
[%emt 0:00:29]} Bh8 {[%emt 0:00:59]} 31. Re2 {[%emt 0:02:48]} Kg7 {[%emt 0:01:
15]} 32. f5 {[%emt 0:04:23]} Rgb8 {[%emt 0:02:02]} 33. f4 {[%emt 0:00:26]} gxf5
{[%emt 0:01:35]} 34. Ka1 {[%emt 0:01:15]} R4b6 {[%emt 0:01:49]} 35. d6 {
[%emt 0:03:12]} cxd6 {[%emt 0:12:25]} 36. Nxf5+ {[%emt 0:00:39]} Nxf5 {[%emt 0:
00:12]} 37. Qxf5 {[%emt 0:00:01]} dxe5 {[%emt 0:01:12]} 38. Qxf7+ {[%emt 0:00:
25]} Kh6 {[%emt 0:00:02]} 39. fxe5 {[%emt 0:00:40]} Rg6 {[%emt 0:00:09]} 40.
Qf4+ {[%emt 0:00:23]} Kg7 {[%emt 0:00:01]} 41. Qf7+ {[%emt 0:30:08]} Kh6 {
[%emt 0:30:03]} 42. Qxe7 {[%emt 0:00:00]} Qd8 {[%emt 0:00:00]} 43. Qxc5 {
[%emt 0:00:00]} Qg5 {[%emt 0:00:00]} 44. Rce1 {[%emt 0:00:00]} Qh4 {[%emt 0:00:
00]} 45. Ka2 {[%emt 0:00:00]} Rd8 {[%emt 0:00:00]} 46. Qe3+ {[%emt 0:00:00]}
Kg7 {[%emt 0:00:00]} 47. Bd3 {[%emt 0:00:00]} Rg3 {[%emt 0:00:00]} 48. Qa7+ {
[%emt 0:00:00]} 1-0

[Event "EICC 2021"]
[Site "Reykjavik"]
[Date "2021.09.05"]
[Round "11.25"]
[White "Vogel, Roven"]
[Black "Ferreira, Jorge Viterbo"]
[Result "1/2-1/2"]
[ECO "E43"]
[WhiteElo "2441"]
[BlackElo "2520"]
[Annotator "ChessBase"]
[PlyCount "85"]
[EventDate "2021.08.26"]
[EventType "swiss"]
[EventCountry "ISL"]
[Tiebreak "Cut1 Buchholz"]
[SourceTitle "playchess.com"]
[Source "ChessBase"]
[SourceQuality "1"]
[TimeControl "40/5400+30:1800+30"]

1. d4 {[%emt 0:00:50]} Nf6 {[%emt 0:00:10]} 2. c4 {[%emt 0:00:07]} e6 {[%emt 0:
00:07]} 3. Nc3 {[%emt 0:00:05]} Bb4 {[%emt 0:00:13]} 4. e3 {[%emt 0:00:59]} b6
{[%emt 0:00:27]} 5. Bd3 {[%emt 0:01:26]} Bb7 {[%emt 0:00:17]} 6. Nge2 {[%emt 0:
00:08]} Bxg2 {[%emt 0:01:43]} 7. Rg1 {[%emt 0:00:38]} Bf3 {[%emt 0:00:34]} 8.
Qc2 {[%emt 0:00:28]} Nc6 {[%emt 0:05:02]} 9. Rg3 {[%emt 0:16:19]} Bxe2 {
[%emt 0:16:24]} 10. Qxe2 {[%emt 0:04:04]} g6 {[%emt 0:08:51]} 11. Bd2 {[%emt 0:
00:52]} Nh5 {[%emt 0:04:43]} 12. Rg2 {[%emt 0:00:57]} Qh4 {[%emt 0:05:22]} 13.
O-O-O {[%emt 0:01:10]} O-O-O {[%emt 0:00:51]} 14. Kb1 {[%emt 0:08:45]} Kb8 {
[%emt 0:12:30]} 15. a3 {[%emt 0:08:09]} Bxc3 {[%emt 0:03:48]} 16. Bxc3 {
[%emt 0:00:08]} Ne7 {[%emt 0:03:01]} 17. Rc1 {[%emt 0:15:46]} f5 {[%emt 0:04:
44]} 18. f3 {[%emt 0:01:28]} Rhe8 {[%emt 0:04:46]} 19. a4 {[%emt 0:03:26]} c5 {
[%emt 0:02:11]} 20. Be1 {[%emt 0:06:13]} Qf6 {[%emt 0:00:59]} 21. dxc5 {
[%emt 0:06:44]} bxc5 {[%emt 0:01:55]} 22. Bc3 {[%emt 0:00:32]} e5 {[%emt 0:07:
37]} 23. a5 {[%emt 0:02:20]} Nc6 {[%emt 0:00:52]} 24. Qd1 {[%emt 0:04:50]} Qd6
{[%emt 0:01:49]} 25. Rd2 {[%emt 0:01:23]} Qc7 {[%emt 0:00:10]} 26. Qa4 {
[%emt 0:00:51]} Ka8 {[%emt 0:01:56]} 27. Rcd1 {[%emt 0:00:12]} d6 {[%emt 0:00:
37]} 28. Bf1 {[%emt 0:06:12]} Re6 {[%emt 0:00:44]} 29. f4 {[%emt 0:01:52]} e4 {
[%emt 0:01:27]} 30. Be2 {[%emt 0:01:17]} Nf6 {[%emt 0:00:21]} 31. h3 {[%emt 0:
00:06]} Rb8 {[%emt 0:00:18]} 32. Rg1 {[%emt 0:02:07]} Ng8 {[%emt 0:00:43]} 33.
Qa3 {[%emt 0:01:26]} Nge7 {[%emt 0:01:25]} 34. Qa4 {[%emt 0:00:05]} Nb4 {
[%emt 0:01:02]} 35. Bxb4 {[%emt 0:01:03]} Rxb4 {[%emt 0:03:34]} 36. Qe8+ {
[%emt 0:00:06]} Qc8 {[%emt 0:01:10]} 37. Qf7 {[%emt 0:00:05]} h5 {[%emt 0:00:
40]} 38. Rgd1 {[%emt 0:01:15]} Qd7 {[%emt 0:00:41]} 39. Rd5 {[%emt 0:01:02]}
Qb7 {[%emt 0:02:53]} 40. R5d2 {[%emt 0:01:16]} Qd7 {[%emt 0:00:49]} 41. Rd5 {
[%emt 0:05:41]} Qb7 {[%emt 0:02:02]} 42. R5d2 {[%emt 0:00:41]} Qd7 {[%emt 0:01:
48]} 43. Rd5 {[%emt 0:00:31]} 1/2-1/2

[Event "EICC 2021"]
[Site "Reykjavik"]
[Date "2021.09.05"]
[Round "11.26"]
[White "Nagy, Gabor"]
[Black "Mazur, Stefan"]
[Result "1-0"]
[ECO "E61"]
[WhiteElo "2518"]
[BlackElo "2416"]
[Annotator "ChessBase"]
[PlyCount "103"]
[EventDate "2021.08.26"]
[EventType "swiss"]
[EventCountry "ISL"]
[Tiebreak "Cut1 Buchholz"]
[SourceTitle "playchess.com"]
[Source "ChessBase"]
[SourceQuality "1"]
[TimeControl "40/5400+30:1800+30"]

1. d4 {[%emt 0:00:04]} Nf6 {[%emt 0:03:26]} 2. c4 {[%emt 0:00:14]} g6 {[%emt 0:
00:15]} 3. Nc3 {[%emt 0:00:15]} Bg7 {[%emt 0:00:07]} 4. Nf3 {[%emt 0:00:15]}
O-O {[%emt 0:01:09]} 5. Bg5 {[%emt 0:00:15]} b6 {[%emt 0:02:23]} 6. e4 {
[%emt 0:01:03]} Bb7 {[%emt 0:00:52]} 7. Bd3 {[%emt 0:00:26]} d6 {[%emt 0:01:27]
} 8. Qd2 {[%emt 0:04:46]} Nbd7 {[%emt 0:06:32]} 9. O-O {[%emt 0:01:03]} c5 {
[%emt 0:05:14]} 10. d5 {[%emt 0:01:33]} a6 {[%emt 0:02:50]} 11. a4 {[%emt 0:00:
48]} e5 {[%emt 0:02:08]} 12. dxe6 {[%emt 0:01:07]} fxe6 {[%emt 0:00:21]} 13.
Rad1 {[%emt 0:01:53]} Ne5 {[%emt 0:08:00]} 14. Bb1 {[%emt 0:13:48]} Nf7 {
[%emt 0:23:30]} 15. Bf4 {[%emt 0:04:11]} Nh5 {[%emt 0:03:31]} 16. Be3 {[%emt 0:
07:07]} Qe7 {[%emt 0:08:37]} 17. Ng5 {[%emt 0:01:39]} Rad8 {[%emt 0:07:58]} 18.
Nxf7 {[%emt 0:01:44]} Qxf7 {[%emt 0:00:19]} 19. f4 {[%emt 0:01:18]} Bxc3 {
[%emt 0:02:49]} 20. bxc3 {[%emt 0:01:52]} Bc6 {[%emt 0:02:37]} 21. f5 {[%emt 0:
01:47]} e5 {[%emt 0:04:58]} 22. Bh6 {[%emt 0:04:50]} Rfe8 {[%emt 0:00:19]} 23.
fxg6 {[%emt 0:01:11]} Qxg6 {[%emt 0:00:10]} 24. Rf5 {[%emt 0:00:07]} Kh8 {
[%emt 0:07:20]} 25. Rg5 {[%emt 0:00:32]} Qxh6 {[%emt 0:03:05]} 26. Rg8+ {
[%emt 0:00:10]} Kxg8 {[%emt 0:00:11]} 27. Qxh6 {[%emt 0:00:06]} Nf4 {[%emt 0:
00:04]} 28. Rxd6 {[%emt 0:01:23]} Rxd6 {[%emt 0:00:24]} 29. Qxd6 {[%emt 0:00:
05]} Re6 {[%emt 0:00:04]} 30. Qd8+ {[%emt 0:00:15]} Kf7 {[%emt 0:01:18]} 31.
Bc2 {[%emt 0:03:37]} Rf6 {[%emt 0:00:14]} 32. g3 {[%emt 0:02:18]} Nh3+ {
[%emt 0:00:53]} 33. Kg2 {[%emt 0:00:35]} Nf2 {[%emt 0:00:38]} 34. Qc7+ {
[%emt 0:03:21]} Kg6 {[%emt 0:00:10]} 35. Qc8 {[%emt 0:00:33]} h5 {[%emt 0:01:
26]} 36. h3 {[%emt 0:00:56]} a5 {[%emt 0:02:27]} 37. g4 {[%emt 0:01:21]} hxg4 {
[%emt 0:00:16]} 38. hxg4 {[%emt 0:00:15]} Bxe4+ {[%emt 0:00:37]} 39. Bxe4+ {
[%emt 0:00:07]} Nxe4 {[%emt 0:00:06]} 40. Qe8+ {[%emt 0:00:44]} Rf7 {[%emt 0:
01:03]} 41. Qxe5 {[%emt 0:31:35]} Rf2+ {[%emt 0:05:59]} 42. Kg1 {[%emt 0:00:00]
} Nf6 {[%emt 0:00:08]} 43. Qd6 {[%emt 0:00:00]} Kg5 {[%emt 0:01:57]} 44. Qxb6 {
[%emt 0:00:00]} Ne4 {[%emt 0:01:25]} 45. Qxa5 {[%emt 0:00:00]} Kxg4 {[%emt 0:
05:51]} 46. Qd8 {[%emt 0:00:00]} Re2 {[%emt 0:06:37]} 47. Qd1 {[%emt 0:00:00]}
Ng3 {[%emt 0:03:27]} 48. a5 {[%emt 0:00:00]} Kf4 {[%emt 0:00:37]} 49. Qd6+ {
[%emt 0:00:00]} Kf3 {[%emt 0:00:30]} 50. Qd5+ {[%emt 0:00:00]} Ne4 {[%emt 0:03:
00]} 51. Qd3+ {[%emt 0:00:00]} Re3 {[%emt 0:00:05]} 52. Qxe3+ {[%emt 0:00:00]}
1-0

[Event "EICC 2021"]
[Site "Reykjavik"]
[Date "2021.09.05"]
[Round "11.27"]
[White "Sokolovsky, Yahli"]
[Black "Kozak, Adam"]
[Result "1-0"]
[ECO "B28"]
[WhiteElo "2415"]
[BlackElo "2504"]
[Annotator "ChessBase"]
[PlyCount "125"]
[EventDate "2021.08.26"]
[EventType "swiss"]
[EventCountry "ISL"]
[Tiebreak "Cut1 Buchholz"]
[SourceTitle "playchess.com"]
[Source "ChessBase"]
[SourceQuality "1"]
[TimeControl "40/5400+30:1800+30"]

1. e4 {[%emt 0:00:03]} c5 {[%emt 0:05:33]} 2. Nf3 {[%emt 0:00:02]} a6 {[%emt 0:
00:06]} 3. c3 {[%emt 0:00:49]} b5 {[%emt 0:02:13]} 4. d4 {[%emt 0:03:42]} cxd4
{[%emt 0:00:07]} 5. cxd4 {[%emt 0:00:16]} Bb7 {[%emt 0:00:07]} 6. Bd3 {[%emt 0:
02:48]} Nf6 {[%emt 0:01:19]} 7. Qe2 {[%emt 0:12:49]} e6 {[%emt 0:11:30]} 8. a4
{[%emt 0:13:59]} Nc6 {[%emt 0:08:39]} 9. e5 {[%emt 0:22:28]} Nd5 {[%emt 0:01:
02]} 10. Nc3 {[%emt 0:00:12]} Ncb4 {[%emt 0:05:21]} 11. Be4 {[%emt 0:04:14]}
Nxc3 {[%emt 0:12:42]} 12. bxc3 {[%emt 0:00:19]} Bxe4 {[%emt 0:00:04]} 13. Qxe4
{[%emt 0:00:14]} Nd5 {[%emt 0:00:06]} 14. Bd2 {[%emt 0:01:00]} b4 {[%emt 0:00:
43]} 15. c4 {[%emt 0:15:52]} Nb6 {[%emt 0:00:43]} 16. Bg5 {[%emt 0:03:03]} Be7
{[%emt 0:10:58]} 17. Bxe7 {[%emt 0:00:39]} Kxe7 {[%emt 0:00:10]} 18. Nd2 {
[%emt 0:03:10]} a5 {[%emt 0:07:33]} 19. O-O {[%emt 0:00:35]} Qc8 {[%emt 0:07:
33]} 20. d5 {[%emt 0:02:21]} Kf8 {[%emt 0:00:10]} 21. Qd4 {[%emt 0:02:46]} Rb8
{[%emt 0:07:33]} 22. dxe6 {[%emt 0:04:14]} fxe6 {[%emt 0:06:54]} 23. Rfe1 {
[%emt 0:01:56]} Qc6 {[%emt 0:03:51]} 24. Re3 {[%emt 0:00:58]} h6 {[%emt 0:01:
45]} 25. Qg4 {[%emt 0:01:32]} g5 {[%emt 0:01:03]} 26. h4 {[%emt 0:01:33]} Rg8 {
[%emt 0:05:12]} 27. Qh5 {[%emt 0:01:07]} Ke7 {[%emt 0:00:02]} 28. Qxh6 {
[%emt 0:00:37]} Rbf8 {[%emt 0:00:09]} 29. hxg5 {[%emt 0:00:43]} Rh8 {[%emt 0:
00:37]} 30. Qg7+ {[%emt 0:00:36]} Kd8 {[%emt 0:00:00]} 31. Rf3 {[%emt 0:00:35]}
Rfg8 {[%emt 0:00:00]} 32. Qf6+ {[%emt 0:00:17]} Kc7 {[%emt 0:00:20]} 33. Qf4 {
[%emt 0:01:00]} Rh5 {[%emt 0:00:20]} 34. Ne4 {[%emt 0:00:27]} Rgh8 {[%emt 0:00:
30]} 35. Rh3 {[%emt 0:00:31]} Rxh3 {[%emt 0:00:38]} 36. gxh3 {[%emt 0:00:01]}
Rxh3 {[%emt 0:00:42]} 37. g6 {[%emt 0:00:40]} Rh8 {[%emt 0:00:05]} 38. f3 {
[%emt 0:00:40]} Qa8 {[%emt 0:02:39]} 39. Nf6 {[%emt 0:00:38]} Qf8 {[%emt 0:00:
10]} 40. Kg2 {[%emt 0:00:32]} b3 {[%emt 0:00:49]} 41. c5 {[%emt 0:16:25]} Nd5 {
[%emt 0:01:13]} 42. Nxd5+ {[%emt 0:06:15]} exd5 {[%emt 0:00:02]} 43. Qxf8 {
[%emt 0:01:06]} Rxf8 {[%emt 0:00:02]} 44. Rb1 {[%emt 0:01:03]} Rg8 {[%emt 0:02:
45]} 45. Rxb3 {[%emt 0:00:09]} Rxg6+ {[%emt 0:00:43]} 46. Kf2 {[%emt 0:00:18]}
Rh6 {[%emt 0:05:12]} 47. Rb5 {[%emt 0:02:47]} Rh2+ {[%emt 0:00:58]} 48. Ke3 {
[%emt 0:02:16]} d4+ {[%emt 0:00:14]} 49. Ke4 {[%emt 0:01:07]} Rd2 {[%emt 0:07:
20]} 50. Rxa5 {[%emt 0:00:12]} d3 {[%emt 0:04:11]} 51. Ra7+ {[%emt 0:00:41]}
Kc6 {[%emt 0:01:04]} 52. Ra6+ {[%emt 0:00:13]} Kxc5 {[%emt 0:00:02]} 53. Rd6 {
[%emt 0:00:09]} Kc4 {[%emt 0:00:11]} 54. Rxd7 {[%emt 0:00:27]} Re2+ {[%emt 0:
01:00]} 55. Kf5 {[%emt 0:00:16]} d2 {[%emt 0:00:18]} 56. f4 {[%emt 0:00:43]}
Kc3 {[%emt 0:00:14]} 57. e6 {[%emt 0:00:48]} Re1 {[%emt 0:00:28]} 58. a5 {
[%emt 0:02:45]} d1=Q {[%emt 0:03:21]} 59. Rxd1 {[%emt 0:00:04]} Rxd1 {[%emt 0:
00:06]} 60. e7 {[%emt 0:00:52]} Re1 {[%emt 0:01:03]} 61. Kf6 {[%emt 0:00:05]}
Kd4 {[%emt 0:00:04]} 62. Kf7 {[%emt 0:01:01]} Re4 {[%emt 0:00:09]} 63. e8=Q {
[%emt 0:00:11]} 1-0

[Event "EICC 2021"]
[Site "Reykjavik"]
[Date "2021.09.05"]
[Round "11.29"]
[White "Abasov, Nijat"]
[Black "Petenyi, Tamas"]
[Result "1-0"]
[ECO "B06"]
[WhiteElo "2656"]
[BlackElo "2463"]
[Annotator "ChessBase"]
[PlyCount "87"]
[EventDate "2021.08.26"]
[EventType "swiss"]
[EventCountry "ISL"]
[Tiebreak "Cut1 Buchholz"]
[SourceTitle "playchess.com"]
[Source "ChessBase"]
[SourceQuality "1"]
[TimeControl "40/5400+30:1800+30"]

1. e4 {[%emt 0:00:57]} g6 {[%emt 0:00:50]} 2. d4 {[%emt 0:00:11]} Bg7 {[%emt 0:
00:26]} 3. Nc3 {[%emt 0:00:09]} d6 {[%emt 0:00:46]} 4. Be3 {[%emt 0:00:20]} Nc6
{[%emt 0:00:30]} 5. d5 {[%emt 0:12:09]} Nb8 {[%emt 0:03:20]} 6. Be2 {[%emt 0:
09:51]} Nf6 {[%emt 0:08:21]} 7. Nf3 {[%emt 0:08:07]} Bg4 {[%emt 0:03:36]} 8.
Nd2 {[%emt 0:08:19]} Bxe2 {[%emt 0:03:52]} 9. Qxe2 {[%emt 0:00:09]} O-O {
[%emt 0:03:11]} 10. O-O {[%emt 0:01:01]} c6 {[%emt 0:04:43]} 11. a4 {[%emt 0:
00:32]} cxd5 {[%emt 0:02:20]} 12. exd5 {[%emt 0:00:43]} Nbd7 {[%emt 0:01:07]}
13. a5 {[%emt 0:00:51]} a6 {[%emt 0:01:29]} 14. Nc4 {[%emt 0:04:19]} Rc8 {
[%emt 0:01:43]} 15. Rfd1 {[%emt 0:02:29]} Qc7 {[%emt 0:19:59]} 16. Ra4 {
[%emt 0:00:23]} Rfe8 {[%emt 0:00:24]} 17. Rb4 {[%emt 0:04:15]} e6 {[%emt 0:08:
32]} 18. dxe6 {[%emt 0:01:02]} Rxe6 {[%emt 0:00:52]} 19. Qf3 {[%emt 0:02:27]}
d5 {[%emt 0:02:22]} 20. Nxd5 {[%emt 0:04:53]} Nxd5 {[%emt 0:01:43]} 21. Rxd5 {
[%emt 0:00:13]} Bf8 {[%emt 0:03:13]} 22. Ra4 {[%emt 0:03:28]} Qc6 {[%emt 0:09:
35]} 23. b3 {[%emt 0:01:08]} Nf6 {[%emt 0:04:15]} 24. Rd1 {[%emt 0:02:30]} Ne4
{[%emt 0:03:58]} 25. Bd4 {[%emt 0:14:29]} Qe8 {[%emt 0:04:55]} 26. Raa1 {
[%emt 0:00:00]} f5 {[%emt 0:01:40]} 27. h3 {[%emt 0:00:43]} Rd8 {[%emt 0:00:37]
} 28. Bb6 {[%emt 0:01:01]} Rc8 {[%emt 0:00:51]} 29. Rd3 {[%emt 0:02:27]} Rxb6 {
[%emt 0:01:20]} 30. axb6 {[%emt 0:05:59]} Bc5 {[%emt 0:00:08]} 31. Ne3 {
[%emt 0:01:32]} Bxb6 {[%emt 0:01:04]} 32. Rad1 {[%emt 0:00:34]} Qe6 {[%emt 0:
00:47]} 33. c4 {[%emt 0:01:40]} Re8 {[%emt 0:00:08]} 34. g3 {[%emt 0:03:59]}
Kh8 {[%emt 0:01:01]} 35. Kg2 {[%emt 0:01:15]} Qe5 {[%emt 0:01:13]} 36. b4 {
[%emt 0:01:33]} Qb2 {[%emt 0:01:43]} 37. c5 {[%emt 0:00:59]} Bc7 {[%emt 0:00:
12]} 38. Nc4 {[%emt 0:00:37]} Qxb4 {[%emt 0:00:30]} 39. Nd6 {[%emt 0:00:07]}
Bxd6 {[%emt 0:02:04]} 40. cxd6 {[%emt 0:00:10]} Rd8 {[%emt 0:00:31]} 41. Rd4 {
[%emt 0:32:26]} Qb6 {[%emt 0:04:35]} 42. Rxe4 {[%emt 0:00:00]} fxe4 {[%emt 0:
00:09]} 43. Qc3+ {[%emt 0:00:00]} Kg8 {[%emt 0:00:11]} 44. Qc7 {[%emt 0:00:00]}
1-0

[Event "EICC 2021"]
[Site "Reykjavik"]
[Date "2021.09.05"]
[Round "11.30"]
[White "Banusz, Tamas"]
[Black "Kjartansson, Gudmundur"]
[Result "1-0"]
[ECO "D02"]
[WhiteElo "2631"]
[BlackElo "2470"]
[Annotator "ChessBase"]
[PlyCount "61"]
[EventDate "2021.08.26"]
[EventType "swiss"]
[EventCountry "ISL"]
[Tiebreak "Cut1 Buchholz"]
[SourceTitle "playchess.com"]
[Source "ChessBase"]
[SourceQuality "1"]
[TimeControl "40/5400+30:1800+30"]

1. d4 {[%emt 0:00:04]} Nf6 {[%emt 0:00:17]} 2. Nf3 {[%emt 0:00:04]} e6 {
[%emt 0:00:18]} 3. Bf4 {[%emt 0:00:06]} d5 {[%emt 0:00:45]} 4. e3 {[%emt 0:00:
08]} c5 {[%emt 0:01:09]} 5. Nbd2 {[%emt 0:00:30]} Nc6 {[%emt 0:00:10]} 6. c3 {
[%emt 0:00:36]} Bd6 {[%emt 0:00:32]} 7. Bg3 {[%emt 0:00:17]} O-O {[%emt 0:01:
59]} 8. Bb5 {[%emt 0:00:21]} Be7 {[%emt 0:00:59]} 9. dxc5 {[%emt 0:01:21]} Bxc5
{[%emt 0:00:58]} 10. O-O {[%emt 0:04:53]} Nh5 {[%emt 0:14:41]} 11. c4 {[%emt 0:
11:31]} Nxg3 {[%emt 0:00:44]} 12. hxg3 {[%emt 0:00:43]} Qb6 {[%emt 0:17:47]}
13. cxd5 {[%emt 0:06:46]} Qxb5 {[%emt 0:09:36]} 14. dxc6 {[%emt 0:00:09]} Qxc6
{[%emt 0:00:24]} 15. Qc2 {[%emt 0:05:23]} Qb5 {[%emt 0:05:42]} 16. Rfd1 {
[%emt 0:07:42]} Be7 {[%emt 0:03:44]} 17. Ne4 {[%emt 0:05:00]} h6 {[%emt 0:19:
33]} 18. Rac1 {[%emt 0:06:43]} Re8 {[%emt 0:01:57]} 19. Nd6 {[%emt 0:06:41]}
Bxd6 {[%emt 0:00:06]} 20. Rxd6 {[%emt 0:00:06]} e5 {[%emt 0:01:45]} 21. a4 {
[%emt 0:04:44]} Qa5 {[%emt 0:04:36]} 22. Qc7 {[%emt 0:03:38]} Qxc7 {[%emt 0:07:
29]} 23. Rxc7 {[%emt 0:01:03]} Kf8 {[%emt 0:01:01]} 24. b4 {[%emt 0:04:57]} b6
{[%emt 0:01:09]} 25. Rd5 {[%emt 0:03:08]} f6 {[%emt 0:02:00]} 26. Nh4 {[%emt 0:
01:28]} Kg8 {[%emt 0:01:19]} 27. Ng6 {[%emt 0:00:53]} Be6 {[%emt 0:02:03]} 28.
Rd6 {[%emt 0:00:03]} Kh7 {[%emt 0:00:52]} 29. Ne7 {[%emt 0:00:14]} Bc8 {
[%emt 0:00:52]} 30. f3 {[%emt 0:05:18]} h5 {[%emt 0:00:28]} 31. Rdc6 {[%emt 0:
00:30]} 1-0